fUST/lending_fUST_20241125
["ID","MTS","AMOUNT","RATE_DAILY","PERIOD"]
[343219260,1732480245540,-151.0,0.00025,7]
[343219261,1732480245550,-292.524986,0.00025,7]
[343219262,1732480245560,-731.427887,0.00025,7]
[343219263,1732480245570,-151.0,0.00025,7]
[343219265,1732480245580,-292.524986,0.00025,7]
[343219267,1732480245589,-731.427887,0.00025,7]
[343219269,1732480245599,-292.524986,0.00025,7]
[343219270,1732480245608,-329.93472,0.00025,7]
[343219273,1732480245627,-328.21523832,0.00025,7]
[343219303,1732480245984,-73.27792868,0.00025,7]
[343219305,1732480245994,-292.524986,0.00025,7]
[343219307,1732480246005,-731.427887,0.00025,7]
[343219309,1732480246015,-292.524986,0.00025,7]
[343219311,1732480246025,-731.427887,0.00025,7]
[343219313,1732480246035,-292.524992,0.00025,7]
[343219315,1732480246045,-151.0,0.00025,7]
[343219318,1732480246055,-731.427887,0.00025,7]
[343219320,1732480246064,-151.0,0.00025,7]
[343219322,1732480246074,-731.427887,0.00025,7]
[343219324,1732480246087,-151.0,0.00025,7]
[343219326,1732480246097,-731.427887,0.00025,7]
[343219329,1732480246107,-151.0,0.00025,7]
[343219332,1732480246118,-151.0,0.00025,7]
[343219334,1732480246128,-731.427887,0.00025,7]
[343219337,1732480246138,-156.918035,0.00025,7]
[343219339,1732480246148,-151.0,0.00025,7]
[343219341,1732480246157,-159.00292589,0.00025,7]
[343222445,1732480285139,1105.95,0.00028162,120]
[343222448,1732480658290,216.408203,0.00013973,2]
[343222522,1732481432659,-216.408203,0.00020447,2]
[343222523,1732481432669,-160.74653898,0.00023462,3]
[343222524,1732481432679,-339.0,0.00025,2]
[343222525,1732481432688,-300.0,0.000258,2]
[343222526,1732481432697,-233.5582007,0.00026213,2]
[343222527,1732481432706,-150.173,0.00026556,2]
[343222528,1732481432716,-250.0,0.0002656,2]
[343222529,1732481432725,-300.0,0.000268,2]
[343222530,1732481432735,-216.408203,0.00026921,2]
[343222531,1732481432744,-264.22,0.00026963,2]
[343222532,1732481432753,-500.0,0.00027397,2]
[343222533,1732481432763,-294.010104,0.000275,11]
[343222534,1732481432772,-300.0,0.000278,2]
[343222535,1732481432783,-151.0,0.000279,14]
[343222536,1732481432794,-6857.88346503,0.00027987,7]
[343222537,1732481432804,-586.29,0.00028,2]
[343222538,1732481432813,-632.0822389,0.00028273,2]
[343222539,1732481432824,-547.62528961,0.00028299,2]
[343222540,1732481432836,-523.33611486,0.00028299,2]
[343222541,1732481432845,-171.11782181,0.00028299,2]
[343222542,1732481432856,-288.10659708,0.00028299,2]
[343222543,1732481432867,-165.82788048,0.000283,2]
[343222544,1732481432877,-151.0,0.000283,14]
[343222545,1732481432886,-250000.0,0.000283,2]
[343222546,1732481432895,-632.08223888,0.00028307,2]
[343222547,1732481432904,-632.08223888,0.00028341,2]
[343222548,1732481432914,-500.0,0.00028373,5]
[343222549,1732481432924,-500.0,0.00028373,5]
[343222550,1732481432933,-500.0,0.00028373,5]
[343222551,1732481432943,-632.08223888,0.00028375,2]
[343222552,1732481432952,-242143.80738198,0.000284,2]
[343222553,1732481432962,-632.08223888,0.0002841,2]
[343222554,1732481432972,-632.08223888,0.00028444,2]
[343222555,1732481432982,-632.08223888,0.00028478,2]
[343222556,1732481432992,-632.08223888,0.00028512,2]
[343222557,1732481433002,-151.0,0.000286,10]
[343222558,1732481433012,-217.13507495,0.00028611,5]
[343222559,1732481433022,-151.0,0.00028612,7]
[343222560,1732481433032,-1920.526569,0.00028612,7]
[343222561,1732481433042,-1920.526569,0.00028612,7]
[343222562,1732481433053,-1920.526569,0.00028612,7]
[343222563,1732481433063,-1920.526569,0.00028612,7]
[343222564,1732481433074,-1920.526569,0.00028612,7]
[343222565,1732481433089,-1920.526569,0.00028612,7]
[343222566,1732481433102,-1920.526569,0.00028612,7]
[343222567,1732481433114,-1920.526569,0.00028612,7]
[343222568,1732481433124,-1920.526569,0.00028612,7]
[343222569,1732481433135,-1920.526569,0.00028612,7]
[343222570,1732481433145,-1920.526569,0.00028612,7]
[343222571,1732481433156,-1920.526569,0.00028612,7]
[343222572,1732481433166,-1920.526569,0.00028612,7]
[343222573,1732481433177,-1920.526569,0.00028612,7]
[343222574,1732481433187,-1920.526569,0.00028612,7]
[343222575,1732481433197,-1920.526569,0.00028612,7]
[343222576,1732481433207,-1920.526569,0.00028612,7]
[343222577,1732481433216,-1920.526569,0.00028612,7]
[343222578,1732481433226,-1920.526569,0.00028612,7]
[343222579,1732481433235,-1920.526576,0.00028612,7]
[343222580,1732481433245,-1548.196375,0.00028612,7]
[343222581,1732481433255,-1548.196375,0.00028612,7]
[343222582,1732481433265,-1548.196375,0.00028612,7]
[343222583,1732481433274,-1548.196375,0.00028612,7]
[343222584,1732481433283,-1548.196375,0.00028612,7]
[343222585,1732481433293,-1548.196375,0.00028612,7]
[343222586,1732481433302,-1548.196375,0.00028612,7]
[343222587,1732481433312,-1548.196375,0.00028612,7]
[343222588,1732481433322,-1548.196375,0.00028612,7]
[343222589,1732481433336,-1548.196375,0.00028612,7]
[343222590,1732481433346,-1548.196375,0.00028612,7]
[343222591,1732481433356,-1548.196375,0.00028612,7]
[343222592,1732481433366,-1548.196375,0.00028612,7]
[343222593,1732481433375,-1548.196375,0.00028612,7]
[343222594,1732481433384,-1548.196375,0.00028612,7]
[343222595,1732481433394,-1548.196375,0.00028612,7]
[343222596,1732481433403,-1548.196375,0.00028612,7]
[343222597,1732481433413,-1548.196375,0.00028612,7]
[343222598,1732481433425,-1548.196375,0.00028612,7]
[343222599,1732481433434,-1548.196384,0.00028612,7]
[343222600,1732481433444,-151.0,0.00028612,7]
[343222601,1732481433454,-151.0,0.00028612,7]
[343222602,1732481433464,-151.0,0.00028612,7]
[343222603,1732481433473,-151.0,0.00028612,7]
[343222604,1732481433483,-151.0,0.00028612,7]
[343222605,1732481433492,-151.0,0.00028612,7]
[343222606,1732481433502,-151.0,0.00028612,7]
[343222607,1732481433511,-151.0,0.00028612,7]
[343222608,1732481433525,-151.0,0.00028612,7]
[343222609,1732481433538,-151.0,0.00028612,7]
[343222610,1732481433550,-289.193736,0.00028612,7]
[343222611,1732481433562,-394.335192,0.00028612,7]
[343222612,1732481433573,-151.0,0.00028612,7]
[343222613,1732481433585,-394.335192,0.00028612,7]
[343222614,1732481433595,-151.0,0.00028612,7]
[343222615,1732481433606,-394.335192,0.00028612,7]
[343222616,1732481433616,-151.0,0.00028612,7]
[343222617,1732481433628,-189.737128,0.00028612,7]
[343222618,1732481433639,-394.335192,0.00028612,7]
[343222619,1732481433651,-394.335192,0.00028612,7]
[343222620,1732481433661,-394.335192,0.00028612,7]
[343222621,1732481433672,-394.335192,0.00028612,7]
[343222622,1732481433683,-394.335192,0.00028612,7]
[343222623,1732481433694,-394.335192,0.00028612,7]
[343222624,1732481433705,-394.335192,0.00028612,7]
[343222625,1732481433716,-394.335192,0.00028612,7]
[343222626,1732481433727,-394.335192,0.00028612,7]
[343222627,1732481433739,-394.335192,0.00028612,7]
[343222628,1732481433751,-394.335192,0.00028612,7]
[343222629,1732481433764,-394.335192,0.00028612,7]
[343222630,1732481433775,-394.335192,0.00028612,7]
[343222631,1732481433792,-394.335192,0.00028612,7]
[343222632,1732481433803,-394.335192,0.00028612,7]
[343222633,1732481433814,-394.335192,0.00028612,7]
[343222634,1732481433827,-394.335186,0.00028612,7]
[343222635,1732481433839,-812.644906,0.00028612,7]
[343222636,1732481433849,-812.644906,0.00028612,7]
[343222637,1732481433860,-812.644906,0.00028612,7]
[343222638,1732481433871,-812.644906,0.00028612,7]
[343222639,1732481433883,-812.644906,0.00028612,7]
[343222640,1732481433894,-812.644906,0.00028612,7]
[343222641,1732481433906,-812.644906,0.00028612,7]
[343222642,1732481433917,-812.644906,0.00028612,7]
[343222643,1732481433928,-812.644906,0.00028612,7]
[343222644,1732481433940,-812.644906,0.00028612,7]
[343222645,1732481433951,-812.644906,0.00028612,7]
[343222646,1732481433962,-812.644906,0.00028612,7]
[343222647,1732481433973,-812.644906,0.00028612,7]
[343222648,1732481433985,-812.644906,0.00028612,7]
[343222649,1732481433995,-812.644906,0.00028612,7]
[343222650,1732481434006,-812.644906,0.00028612,7]
[343222651,1732481434017,-812.644906,0.00028612,7]
[343222652,1732481434028,-812.644906,0.00028612,7]
[343222653,1732481434039,-812.644906,0.00028612,7]
[343222654,1732481434050,-812.64491,0.00028612,7]
[343222655,1732481434062,-151.0,0.00028612,7]
[343222656,1732481434073,-151.0,0.00028612,7]
[343222657,1732481434085,-151.0,0.00028612,7]
[343222658,1732481434100,-151.0,0.00028612,7]
[343222659,1732481434112,-151.0,0.00028612,7]
[343222660,1732481434126,-298.129684,0.00028612,7]
[343222661,1732481434138,-151.0,0.00028612,7]
[343222662,1732481434150,-153.047382,0.00028612,7]
[343222663,1732481434161,-870.415656,0.00028612,7]
[343222664,1732481434172,-870.415656,0.00028612,7]
[343222665,1732481434183,-870.415656,0.00028612,7]
[343222666,1732481434194,-870.415656,0.00028612,7]
[343222667,1732481434205,-870.415656,0.00028612,7]
[343222668,1732481434217,-870.415656,0.00028612,7]
[343222669,1732481434227,-870.415656,0.00028612,7]
[343222670,1732481434237,-870.415656,0.00028612,7]
[343222671,1732481434249,-870.415656,0.00028612,7]
[343222672,1732481434260,-870.415656,0.00028612,7]
[343222673,1732481434271,-870.415656,0.00028612,7]
[343222674,1732481434282,-870.415656,0.00028612,7]
[343222675,1732481434292,-870.415656,0.00028612,7]
[343222676,1732481434302,-870.415656,0.00028612,7]
[343222677,1732481434312,-870.415656,0.00028612,7]
[343222678,1732481434323,-870.415656,0.00028612,7]
[343222679,1732481434336,-870.415656,0.00028612,7]
[343222680,1732481434347,-870.415656,0.00028612,7]
[343222681,1732481434359,-870.415656,0.00028612,7]
[343222682,1732481434370,-870.415659,0.00028612,7]
[343222683,1732481434381,-845.002866,0.00028612,7]
[343222684,1732481434392,-165.82788048,0.00028612,2]
[343222685,1732481434402,-165.82788048,0.00028612,2]
[343222686,1732481434412,-32523.33470123,0.00028612,10]
[343222687,1732481434426,-3080.805,0.00028612,10]
[343222732,1732481443945,-845.002866,0.00028612,7]
[343222735,1732481443957,-151.0,0.00028612,7]
[343222736,1732481443968,-845.002866,0.00028612,7]
[343222737,1732481443980,-151.0,0.00028612,7]
[343222738,1732481443991,-845.002866,0.00028612,7]
[343222739,1732481444002,-151.0,0.00028612,7]
[343222740,1732481444014,-845.002866,0.00028612,7]
[343222741,1732481444026,-151.0,0.00028612,7]
[343222742,1732481444037,-151.0,0.00028612,7]
[343222743,1732481444050,-845.002866,0.00028612,7]
[343222744,1732481444063,-151.0,0.00028612,7]
[343222745,1732481444075,-845.002866,0.00028612,7]
[343222746,1732481444087,-172.108049,0.00028612,7]
[343222747,1732481444200,-845.002866,0.00028612,7]
[343222748,1732481444210,-845.002866,0.00028612,7]
[343222749,1732481444220,-845.002866,0.00028612,7]
[343222750,1732481444229,-845.002866,0.00028612,7]
[343222751,1732481444239,-845.002866,0.00028612,7]
[343222752,1732481444248,-845.002866,0.00028612,7]
[343222753,1732481444257,-845.002866,0.00028612,7]
[343222754,1732481444267,-845.002866,0.00028612,7]
[343222755,1732481444277,-845.002866,0.00028612,7]
[343222756,1732481444287,-845.002866,0.00028612,7]
[343222757,1732481444297,-845.002866,0.00028612,7]
[343222758,1732481444307,-845.002866,0.00028612,7]
[343222759,1732481444317,-845.002859,0.00028612,7]
[343222760,1732481444326,-14969.23019869,0.00028612,10]
[343222780,1732481446069,-513.07615148,0.00028612,10]
[343222820,1732481637225,223.868362,0.00013973,2]
[343222821,1732481732930,-325000.0,0.00028616,10]
[343222822,1732481760215,-269.139598,0.00028616,30]
[343222823,1732481771074,1412.03288232,0.00028161,120]
[343222824,1732481795334,-499730.860402,0.00028616,10]
[343222826,1732482003303,-1769.8,0.0002815,120]
[343222840,1732482404164,-223.868362,0.00020447,2]
[343222841,1732482404188,-11.8838516,0.00021,2]
[343222842,1732482451614,229.412084,0.00013973,2]
[343222878,1732482638543,-229.412084,0.00020447,2]
[343222879,1732482638553,-1008.587916,0.00021,2]
[343222911,1732482640153,-878.1240344,0.00021,2]
[343222913,1732482640162,-307.189019,0.00026568,2]
[343222915,1732482640172,-229.412084,0.00026921,2]
[343222917,1732482640181,-255.0103858,0.00027253,2]
[343223022,1732482643255,-52.1786332,0.00027253,2]
[343223023,1732482643265,-307.189019,0.00027938,2]
[343223024,1732482643275,-527.66,0.00028,2]
[343223025,1732482643284,-221.0,0.00028099,2]
[343223026,1732482643295,-3372.23366119,0.000281,2]
[343223027,1732482643304,-6638.39139378,0.0002815,120]
[343223028,1732482643314,-500.0,0.00028189,2]
[343223029,1732482643324,-160.746,0.0002819,19]
[343223030,1732482643334,-1237.19,0.0002819,10]
[343223031,1732482643344,-2573.74,0.0002819,10]
[343223032,1732482643353,-2630.37,0.00028198,2]
[343223033,1732482643363,-500.0,0.00028199,2]
[343223034,1732482643373,-212.21150767,0.00028199,2]
[343223035,1732482643382,-500.0,0.00028199,2]
[343223036,1732482643391,-500.0,0.00028199,2]
[343223037,1732482643401,-500.0,0.00028199,2]
[343223038,1732482643410,-500.0,0.00028199,2]
[343223039,1732482643419,-500.0,0.00028199,2]
[343223040,1732482643428,-500.0,0.00028199,2]
[343223041,1732482643437,-500.0,0.00028199,2]
[343223042,1732482643447,-500.0,0.00028199,2]
[343223043,1732482643457,-500.0,0.00028199,2]
[343223044,1732482643467,-500.0,0.00028199,2]
[343223045,1732482643477,-500.0,0.00028199,2]
[343223046,1732482643487,-500.0,0.00028199,2]
[343223047,1732482643496,-386.05435669,0.00028199,2]
[343223048,1732482643506,-500.0,0.00028199,2]
[343223049,1732482643515,-500.0,0.00028199,2]
[343223050,1732482643525,-500.0,0.00028199,2]
[343223051,1732482643535,-500.0,0.00028199,2]
[343223052,1732482643544,-500.0,0.00028199,2]
[343223053,1732482643554,-239.02253035,0.00028199,2]
[343223054,1732482643563,-333.66343634,0.00028199,2]
[343223055,1732482643573,-500.0,0.00028199,2]
[343223056,1732482643583,-500.0,0.00028199,2]
[343223057,1732482643592,-500.0,0.00028199,2]
[343223058,1732482643601,-500.0,0.00028199,2]
[343223059,1732482643611,-500.0,0.00028199,2]
[343223060,1732482643620,-435.76484582,0.00028199,2]
[343223061,1732482643630,-248.74182072,0.000282,2]
[343223062,1732482643640,-250000.0,0.000282,2]
[343223063,1732482643650,-2630.37,0.00028472,2]
[343223064,1732482643659,-151.0,0.00028616,7]
[343223065,1732482643669,-151.0,0.00028616,7]
[343223066,1732482643679,-151.0,0.00028616,7]
[343223067,1732482643688,-285.685111,0.00028616,7]
[343223068,1732482643698,-151.0,0.00028616,7]
[343223069,1732482643707,-151.0,0.00028616,7]
[343223070,1732482643717,-151.0,0.00028616,7]
[343223071,1732482643727,-151.0,0.00028616,7]
[343223072,1732482643736,-151.0,0.00028616,7]
[343223073,1732482643746,-151.0,0.00028616,7]
[343223074,1732482643756,-151.0,0.00028616,7]
[343223075,1732482643766,-151.0,0.00028616,7]
[343223076,1732482643775,-151.0,0.00028616,7]
[343223077,1732482643785,-151.0,0.00028616,7]
[343223078,1732482643794,-151.0,0.00028616,7]
[343223079,1732482643804,-151.0,0.00028616,7]
[343223080,1732482643814,-151.0,0.00028616,7]
[343223081,1732482643824,-151.0,0.00028616,7]
[343223082,1732482643834,-151.0,0.00028616,7]
[343223083,1732482643843,-151.0,0.00028616,7]
[343223084,1732482643853,-151.0,0.00028616,7]
[343223085,1732482643862,-151.0,0.00028616,7]
[343223086,1732482643872,-151.0,0.00028616,7]
[343223087,1732482643882,-223.2426,0.00028616,7]
[343223088,1732482643892,-151.0,0.00028616,7]
[343223089,1732482643901,-231.907131,0.00028616,7]
[343223090,1732482643911,-151.0,0.00028616,7]
[343223091,1732482643920,-151.0,0.00028616,7]
[343223092,1732482643930,-259.43368,0.00028616,7]
[343223093,1732482643940,-300.0,0.00028618,7]
[343223094,1732482643950,-500.0,0.00028618,7]
[343223095,1732482643960,-500.0,0.00028618,7]
[343223096,1732482643969,-500.0,0.00028618,7]
[343223097,1732482643979,-500.0,0.00028618,7]
[343223098,1732482643989,-500.0,0.00028618,7]
[343223099,1732482643999,-500.0,0.00028618,7]
[343223100,1732482644010,-260.29342259,0.00028618,7]
[343223101,1732482644019,-292.65411874,0.00028618,7]
[343223102,1732482644029,-151.0,0.00028619,7]
[343223103,1732482644039,-151.0,0.00028619,7]
[343223104,1732482644049,-151.0,0.00028619,7]
[343223105,1732482644059,-151.0,0.00028619,7]
[343223106,1732482644068,-151.0,0.00028619,7]
[343223107,1732482644080,-151.0,0.00028619,7]
[343223108,1732482644089,-151.0,0.00028619,7]
[343223109,1732482644099,-151.0,0.00028619,7]
[343223110,1732482644109,-151.0,0.00028619,7]
[343223111,1732482644118,-151.0,0.00028619,7]
[343223112,1732482644127,-151.0,0.00028619,7]
[343223113,1732482644137,-151.0,0.00028619,7]
[343223114,1732482644152,-151.0,0.00028619,7]
[343223115,1732482644161,-151.0,0.00028619,7]
[343223116,1732482644171,-151.0,0.00028619,7]
[343223117,1732482644180,-151.0,0.00028619,7]
[343223118,1732482644190,-151.0,0.00028619,7]
[343223119,1732482644199,-151.0,0.00028619,7]
[343223120,1732482644209,-151.0,0.00028619,7]
[343223121,1732482644220,-153.438023,0.00028619,7]
[343223122,1732482644230,-151.0,0.00028619,7]
[343223123,1732482644239,-151.0,0.00028619,7]
[343223124,1732482644249,-151.0,0.00028619,7]
[343223125,1732482644259,-151.0,0.00028619,7]
[343223126,1732482644268,-181.345499,0.00028619,7]
[343223127,1732482644371,-151.0,0.00028619,7]
[343223128,1732482644385,-172.402473,0.00028619,7]
[343223129,1732482644395,-172.402473,0.00028619,7]
[343223130,1732482644404,-172.402473,0.00028619,7]
[343223131,1732482644414,-172.402473,0.00028619,7]
[343223132,1732482644423,-172.402473,0.00028619,7]
[343223133,1732482644433,-172.402473,0.00028619,7]
[343223134,1732482644443,-172.402473,0.00028619,7]
[343223135,1732482644452,-172.402473,0.00028619,7]
[343223136,1732482644462,-172.402473,0.00028619,7]
[343223137,1732482644472,-172.402473,0.00028619,7]
[343223138,1732482644481,-172.402473,0.00028619,7]
[343223139,1732482644491,-172.402473,0.00028619,7]
[343223140,1732482644500,-172.402473,0.00028619,7]
[343223141,1732482644509,-172.402473,0.00028619,7]
[343223142,1732482644519,-172.402473,0.00028619,7]
[343223143,1732482644529,-172.402473,0.00028619,7]
[343223144,1732482644539,-172.402473,0.00028619,7]
[343223145,1732482644549,-172.402473,0.00028619,7]
[343223146,1732482644558,-172.402473,0.00028619,7]
[343223147,1732482644567,-172.402466,0.00028619,7]
[343223148,1732482644577,-151.0,0.00028619,7]
[343223149,1732482644588,-151.0,0.00028619,7]
[343223150,1732482644598,-156.918035,0.00028619,7]
[343223151,1732482644607,-350.183569,0.00028619,7]
[343223152,1732482644616,-350.183569,0.00028619,7]
[343223153,1732482644627,-350.183569,0.00028619,7]
[343223154,1732482644636,-350.183569,0.00028619,7]
[343223155,1732482644646,-350.183569,0.00028619,7]
[343223156,1732482644656,-350.183569,0.00028619,7]
[343223157,1732482644666,-350.183569,0.00028619,7]
[343223158,1732482644676,-350.183569,0.00028619,7]
[343223159,1732482644686,-350.183569,0.00028619,7]
[343223160,1732482644695,-350.183569,0.00028619,7]
[343223161,1732482644705,-350.183569,0.00028619,7]
[343223162,1732482644714,-350.183569,0.00028619,7]
[343223163,1732482644724,-350.183569,0.00028619,7]
[343223164,1732482644733,-350.183569,0.00028619,7]
[343223165,1732482644743,-350.183569,0.00028619,7]
[343223166,1732482644752,-350.183569,0.00028619,7]
[343223167,1732482644762,-350.183569,0.00028619,7]
[343223168,1732482644771,-350.183569,0.00028619,7]
[343223169,1732482644781,-350.183569,0.00028619,7]
[343223170,1732482644791,-350.183566,0.00028619,7]
[343223171,1732482644800,-151.0,0.00028619,7]
[343223172,1732482644810,-151.0,0.00028619,7]
[343223173,1732482644820,-151.0,0.00028619,7]
[343223174,1732482644829,-151.0,0.00028619,7]
[343223175,1732482644839,-157.683791,0.00028619,7]
[343223176,1732482644849,-151.214388,0.00028619,7]
[343223177,1732482644859,-151.0,0.00028619,7]
[343223178,1732482644869,-151.0,0.00028619,7]
[343223179,1732482644878,-151.0,0.00028619,7]
[343223180,1732482644887,-151.0,0.00028619,7]
[343223181,1732482644897,-151.0,0.00028619,7]
[343223182,1732482644906,-151.0,0.00028619,7]
[343223183,1732482644915,-151.0,0.00028619,7]
[343223184,1732482644926,-151.0,0.00028619,7]
[343223185,1732482644936,-151.0,0.00028619,7]
[343223186,1732482644945,-151.0,0.00028619,7]
[343223187,1732482644955,-151.0,0.00028619,7]
[343223188,1732482644968,-151.0,0.00028619,7]
[343223189,1732482644978,-151.0,0.00028619,7]
[343223190,1732482644988,-151.0,0.00028619,7]
[343223191,1732482644998,-151.0,0.00028619,7]
[343223192,1732482645008,-151.0,0.00028619,7]
[343223193,1732482645018,-251.055584,0.00028619,7]
[343223194,1732482645027,-154.819638,0.00028619,7]
[343223195,1732482645037,-154.819638,0.00028619,7]
[343223196,1732482645047,-154.819638,0.00028619,7]
[343223197,1732482645057,-154.819638,0.00028619,7]
[343223198,1732482645067,-154.819638,0.00028619,7]
[343223199,1732482645077,-154.819638,0.00028619,7]
[343223200,1732482645088,-154.819638,0.00028619,7]
[343223201,1732482645097,-154.819638,0.00028619,7]
[343223202,1732482645106,-154.819638,0.00028619,7]
[343223203,1732482645115,-154.819638,0.00028619,7]
[343223204,1732482645125,-154.819638,0.00028619,7]
[343223205,1732482645135,-154.819638,0.00028619,7]
[343223206,1732482645147,-154.819638,0.00028619,7]
[343223207,1732482645157,-154.819638,0.00028619,7]
[343223208,1732482645166,-154.819638,0.00028619,7]
[343223209,1732482645175,-154.819638,0.00028619,7]
[343223210,1732482645186,-154.819638,0.00028619,7]
[343223211,1732482645196,-154.819638,0.00028619,7]
[343223212,1732482645205,-154.819638,0.00028619,7]
[343223213,1732482645216,-154.819628,0.00028619,7]
[343223214,1732482645225,-1715146.33747283,0.0002862,10]
[343223215,1732482645240,-3176.29253774,0.0002862,10]
[343223216,1732482645253,-1500.0975,0.0002862,10]
[343223258,1732483266149,213.015709,0.00013973,2]
[343223278,1732483714432,157255.75220802,0.00025,30]
[343223279,1732483714631,7581.29210339,0.00026,60]
[343223285,1732483722120,3056.41341076,0.00026,30]
[343223307,1732483832374,-2644.25,0.00020377,2]
[343223308,1732483832383,-213.015709,0.00020447,2]
[343223309,1732483832393,-6495.93075198,0.00021,2]
[343223310,1732483832402,-306.468567,0.00025998,2]
[343223311,1732483832411,-300.0,0.00026292,2]
[343223312,1732483832420,-605.158572,0.00026294,2]
[343223313,1732483832430,-152.0,0.00026343,2]
[343223314,1732483832440,-4866.93113078,0.0002663,2]
[343223315,1732483832451,-5371.55202142,0.0002663,2]
[343223316,1732483832461,-213.015709,0.00026921,2]
[343223317,1732483832475,-605.158572,0.00026979,2]
[343223318,1732483832485,-2411.17,0.00027137,2]
[343223319,1732483832495,-2598.2009921,0.00027137,2]
[343223320,1732483832505,-2411.17,0.00027411,2]
[343223321,1732483832515,-605.158572,0.00027664,2]
[343223322,1732483832525,-2411.17,0.00027685,2]
[343223323,1732483832534,-172.07119509,0.000279,2]
[343223324,1732483832543,-2411.17,0.00027959,2]
[343223325,1732483832554,-6857.88346503,0.00027987,7]
[343223326,1732483832564,-155.68374398,0.00027987,2]
[343223327,1732483832573,-330.7224101,0.00028,2]
[343223328,1732483832582,-500.4917188,0.00028073,5]
[343223329,1732483832592,-1217.0,0.0002809,10]
[343223330,1732483832601,-386.91012939,0.00028099,2]
[343223331,1732483832612,-500.0,0.00028099,2]
[343223332,1732483832622,-500.0,0.00028099,2]
[343223333,1732483832632,-500.0,0.00028099,2]
[343223334,1732483832642,-500.0,0.00028099,2]
[343223335,1732483832652,-154.00603963,0.00028099,2]
[343223336,1732483832661,-500.0,0.00028099,2]
[343223337,1732483832670,-500.0,0.00028099,2]
[343223338,1732483832680,-500.0,0.00028099,2]
[343223339,1732483832690,-500.0,0.00028099,2]
[343223340,1732483832700,-474.95841361,0.00028099,2]
[343223341,1732483832710,-509.41604955,0.00028099,2]
[343223342,1732483832720,-500.0,0.00028099,2]
[343223343,1732483832730,-500.0,0.00028099,2]
[343223344,1732483832739,-473.57648458,0.00028099,2]
[343223345,1732483832749,-167.37565959,0.00028099,2]
[343223346,1732483832758,-500.0,0.00028099,2]
[343223347,1732483832767,-500.0,0.00028099,2]
[343223348,1732483832777,-250000.0,0.000281,2]
[343223349,1732483832786,-474.89,0.000281,2]
[343223350,1732483832796,-330.72241007,0.00028102,2]
[343223351,1732483832805,-172.07119506,0.00028114,2]
[343223352,1732483832815,-500.4423719,0.00028189,2]
[343223353,1732483832824,-2411.17,0.00028233,2]
[343223354,1732483832833,-172.07119506,0.00028328,2]
[343223355,1732483832843,-500.0,0.00028473,5]
[343223356,1732483832851,-417.87599311,0.00028473,5]
[343223357,1732483832861,-500.0,0.00028473,5]
[343223358,1732483832870,-500.0,0.00028473,5]
[343223359,1732483832879,-500.0,0.00028473,5]
[343223360,1732483832888,-500.0,0.00028473,5]
[343223361,1732483832897,-500.0,0.00028473,5]
[343223362,1732483832908,-500.0,0.00028473,5]
[343223363,1732483832917,-500.0,0.00028473,5]
[343223364,1732483832928,-512.74227296,0.00028473,5]
[343223365,1732483832939,-299.336706,0.000285,15]
[343223366,1732483832949,-250166.80378927,0.000285,15]
[343223367,1732483832963,-1418.42969165,0.000285,15]
[343223368,1732483832975,-9464.69765318,0.000285,15]
[343223369,1732483832987,-104566.82009174,0.000285,15]